[Event "FIDE WCCC Open-12 2024"]
[Site "Montesilvano"]
[Date "2024.11.18"]
[Round "1.17"]
[White "Belin, Anton"]
[Black "Mai, Duc Kien"]
[Result "1-0"]
[ECO "B40"]
[WhiteElo "2138"]
[BlackElo "1771"]
[PlyCount "103"]
[EventDate "2024.11.18"]
[EventType "swiss"]
[EventCountry "ITA"]
[TimeControl "5400+30"]

1. e4 {[%emt 0:00:03]} c5 {[%emt 0:00:15]} 2. Nf3 {[%emt 0:00:43]} e6 {[%emt 0:00:29]} 3. b3 {[%emt 0:01:32]} d5 {[%emt 0:03:35]} 4. exd5 {[%emt 0:00:30]} exd5 {[%emt 0:00:15]} 5. Bb5+ {[%emt 0:01:20]} Bd7 {[%emt 0:02:28]} 6. Bxd7+ {[%emt 0:00:09]} Qxd7 {[%emt 0:00:53]} 7. O-O {[%emt 0:02:10]} Nf6 {[%emt 0:00:37]} 8. Re1+ {[%emt 0:01:13]} Be7 {[%emt 0:00:05]} 9. Ne5 {[%emt 0:05:46]} Qd8 {[%emt 0:01:40]} 10. Bb2 {[%emt 0:02:42]} O-O {[%emt 0:03:46]} 11. d4 {[%emt 0:02:12]} Nc6 {[%emt 0:03:10]} 12. Nxc6 {[%emt 0:01:23]} bxc6 {[%emt 0:00:07]} 13. Nc3 {[%emt 0:05:15]} Re8 {[%emt 0:08:02]} 14. dxc5 {[%emt 0:01:05]} Bxc5 {[%emt 0:00:08]} 15. Rxe8+ {[%emt 0:00:11]} Qxe8 {[%emt 0:08:54]} 16. Qf3 {[%emt 0:02:13]} Qe6 {[%emt 0:06:19]} 17. Na4 {[%emt 0:07:41]} Be7 {[%emt 0:03:14]} 18. Qc3 {[%emt 0:02:23]} Qd7 {[%emt 0:08:14]} 19. Re1 {[%emt 0:02:18]} Re8 {[%emt 0:01:17]} 20. Re3 {[%emt 0:11:37]} Bd6 {[%emt 0:04:10]} 21. Nc5 {[%emt 0:03:49]} Bxc5 {[%emt 0:03:07]} 22. Qxc5 {[%emt 0:00:16]} Rxe3 {[%emt 0:04:36]} 23. Qxe3 {[%emt 0:00:13]} Ne4 {[%emt 0:05:05]} 24. h3 {[%emt 0:04:09]} Nd6 {[%emt 0:04:08]} 25. Qg3 {[%emt 0:02:05]} f5 {[%emt 0:06:53]} 26. Qe5 {[%emt 0:04:05]} h6 {[%emt 0:01:27]} 27. Bd4 {[%emt 0:02:47]} a6 {[%emt 0:01:40]} 28. Qe2 {[%emt 0:01:36]} Nb5 {[%emt 0:02:53]} 29. Bb6 {[%emt 0:02:08]} Qb7 {[%emt 0:02:56]} 30. Qe6+ {[%emt 0:00:19]} Kh7 {[%emt 0:00:49]} 31. Bc5 {[%emt 0:00:07]} Nc3 {[%emt 0:04:42]} 32. Qxf5+ {[%emt 0:00:44]} Kh8 {[%emt 0:00:08]} 33. a4 {[%emt 0:01:35]} Ne4 {[%emt 0:02:22]} 34. Bd4 {[%emt 0:01:14]} Qc7 {[%emt 0:02:16]} 35. Qg6 {[%emt 0:02:18]} Kg8 {[%emt 0:00:33]} 36. f3 {[%emt 0:01:19]} Ng5 {[%emt 0:04:57]} 37. h4 {[%emt 0:01:52]} Nh7 {[%emt 0:00:17]} 38. Qe6+ {[%emt 0:00:27]} Qf7 {[%emt 0:00:32]} 39. Qc8+ {[%emt 0:00:35]} Nf8 {[%emt 0:00:08]} 40. Bc5 {[%emt 0:00:04]} Qf4 {[%emt 0:00:42]} 41. h5 {[%emt 0:01:52]} Qc1+ {[%emt 0:00:37]} 42. Kh2 {[%emt 0:00:06]} Qf4+ {[%emt 0:00:48]} 43. Kh3 {[%emt 0:00:14]} Qf7 {[%emt 0:00:07]} 44. Qxf8+ {[%emt 0:00:49]} Qxf8 {[%emt 0:00:09]} 45. Bxf8 {[%emt 0:00:04]} Kxf8 {[%emt 0:00:04]} 46. Kg4 {[%emt 0:00:11]} Ke7 {[%emt 0:00:15]} 47. Kf5 {[%emt 0:00:06]} Kf7 {[%emt 0:00:05]} 48. b4 {[%emt 0:00:17]} Ke7 {[%emt 0:00:12]} 49. Ke5 {[%emt 0:00:09]} Kd7 {[%emt 0:00:04]} 50. g4 {[%emt 0:00:20]} Ke7 {[%emt 0:00:04]} 51. f4 {[%emt 0:00:05]} Kd7 {[%emt 0:00:03]} 52. g5 {[%emt 0:00:06]} 1-0

[Event "FIDE WCCC Open-12 2024"]
[Site "Montesilvano"]
[Date "2024.11.18"]
[Round "1.18"]
[White "Lee, Daniel Joshua"]
[Black "Ambartsumian, Tyhran"]
[Result "0-1"]
[ECO "C54"]
[WhiteElo "1765"]
[BlackElo "2123"]
[PlyCount "60"]
[EventDate "2024.11.18"]
[EventType "swiss"]
[EventCountry "ITA"]
[TimeControl "5400+30"]

1. e4 {[%emt 0:00:02]} e5 {[%emt 0:00:39]} 2. Nf3 {[%emt 0:00:07]} Nc6 {[%emt 0:00:06]} 3. Bc4 {[%emt 0:00:09]} Bc5 {[%emt 0:00:09]} 4. c3 {[%emt 0:00:07]} Nf6 {[%emt 0:00:05]} 5. d3 {[%emt 0:00:07]} d6 {[%emt 0:00:04]} 6. O-O {[%emt 0:00:12]} a5 {[%emt 0:00:04]} 7. Nbd2 {[%emt 0:00:34]} O-O {[%emt 0:00:29]} 8. h3 {[%emt 0:00:37]} h6 {[%emt 0:01:09]} 9. Re1 {[%emt 0:00:44]} Be6 {[%emt 0:00:09]} 10. Bb5 {[%emt 0:00:55]} Qb8 {[%emt 0:00:10]} 11. Nf1 {[%emt 0:08:18]} Qa7 {[%emt 0:00:07]} 12. Be3 {[%emt 0:13:01]} Bxe3 {[%emt 0:00:06]} 13. Rxe3 {[%emt 0:01:18]} Ne7 {[%emt 0:01:17]} 14. d4 {[%emt 0:03:25]} Ng6 {[%emt 0:04:19]} 15. Ng3 {[%emt 0:11:36]} a4 {[%emt 0:08:42]} 16. d5 {[%emt 0:13:01]} Bc8 {[%emt 0:21:07]} 17. c4 {[%emt 0:10:45]} Nf4 {[%emt 0:01:00]} 18. Nf5 {[%emt 0:18:18]} Ng6 {[%emt 0:12:33]} 19. Ng3 {[%emt 0:01:48]} Qc5 {[%emt 0:10:16]} 20. Bxa4 {[%emt 0:08:16]} Qxc4 {[%emt 0:00:23]} 21. Bb3 {[%emt 0:01:54]} Qb4 {[%emt 0:01:55]} 22. Rc1 {[%emt 0:00:47]} Nd7 {[%emt 0:00:29]} 23. Rxc7 {[%emt 0:03:45]} Nc5 {[%emt 0:00:08]} 24. Nf5 {[%emt 0:01:32]} Qb6 {[%emt 0:01:19]} 25. Rxc5 {[%emt 0:00:57]} Qxc5 {[%emt 0:00:02]} 26. Rc3 {[%emt 0:00:24]} Qb6 {[%emt 0:00:44]} 27. N3h4 {[%emt 0:00:43]} Qd8 {[%emt 0:00:36]} 28. Qh5 {[%emt 0:00:36]} Nf4 {[%emt 0:01:30]} 29. Qg4 {[%emt 0:00:29]} Qg5 {[%emt 0:00:11]} 30. Qd1 {[%emt 0:00:31]} Bxf5 {[%emt 0:00:07]} 0-1

[Event "FIDE WCCC Open-12 2024"]
[Site "Montesilvano"]
[Date "2024.11.18"]
[Round "1.19"]
[White "Luger, Sam"]
[Black "Yusupov, Rauf"]
[Result "1-0"]
[ECO "E02"]
[WhiteElo "2094"]
[BlackElo "1763"]
[PlyCount "93"]
[EventDate "2024.11.18"]
[EventType "swiss"]
[EventCountry "ITA"]
[TimeControl "5400+30"]

1. d4 {[%emt 0:00:06]} d5 {[%emt 0:00:06]} 2. c4 {[%emt 0:00:18]} e6 {[%emt 0:00:05]} 3. Nf3 {[%emt 0:00:10]} Nf6 {[%emt 0:00:09]} 4. g3 {[%emt 0:00:05]} Be7 {[%emt 0:00:27]} 5. Bg2 {[%emt 0:00:15]} c6 {[%emt 0:00:06]} 6. O-O {[%emt 0:00:27]} O-O {[%emt 0:00:05]} 7. Nc3 {[%emt 0:00:40]} Nbd7 {[%emt 0:00:23]} 8. Qd3 {[%emt 0:00:56]} dxc4 {[%emt 0:03:14]} 9. Qxc4 {[%emt 0:00:33]} Nd5 {[%emt 0:00:28]} 10. e4 {[%emt 0:06:46]} Nxc3 {[%emt 0:00:06]} 11. Qxc3 {[%emt 0:01:17]} Nf6 {[%emt 0:04:39]} 12. Ne5 {[%emt 0:05:21]} Bd7 {[%emt 0:10:10]} 13. Bf4 {[%emt 0:08:58]} Rc8 {[%emt 0:09:18]} 14. Rad1 {[%emt 0:16:32]} Qb6 {[%emt 0:11:37]} 15. Nc4 {[%emt 0:09:13]} Qb4 {[%emt 0:08:15]} 16. Qxb4 {[%emt 0:07:54]} Bxb4 {[%emt 0:00:06]} 17. Bd6 {[%emt 0:09:02]} Bxd6 {[%emt 0:00:27]} 18. Nxd6 {[%emt 0:00:05]} Rc7 {[%emt 0:05:57]} 19. e5 {[%emt 0:02:33]} Ne8 {[%emt 0:06:05]} 20. Ne4 {[%emt 0:03:24]} f5 {[%emt 0:05:36]} 21. Nc5 {[%emt 0:04:14]} g5 {[%emt 0:08:34]} 22. f4 {[%emt 0:07:41]} g4 {[%emt 0:00:07]} 23. Rd2 {[%emt 0:02:35]} Ng7 {[%emt 0:04:42]} 24. Rc1 {[%emt 0:00:38]} Bc8 {[%emt 0:02:04]} 25. Kf2 {[%emt 0:03:18]} Kf7 {[%emt 0:02:38]} 26. b4 {[%emt 0:02:27]} Rd8 {[%emt 0:07:58]} 27. Nb3 {[%emt 0:01:33]} Ne8 {[%emt 0:02:19]} 28. Rdc2 {[%emt 0:00:43]} Rdd7 {[%emt 0:01:20]} 29. Ke3 {[%emt 0:01:09]} Ke7 {[%emt 0:02:01]} 30. Nc5 {[%emt 0:00:30]} Rd8 {[%emt 0:00:06]} 31. a4 {[%emt 0:01:36]} a6 {[%emt 0:00:29]} 32. Nb3 {[%emt 0:00:47]} Rdd7 {[%emt 0:00:50]} 33. Nc5 {[%emt 0:01:35]} Rd8 {[%emt 0:00:09]} 34. Nb3 {[%emt 0:00:39]} Rdd7 {[%emt 0:00:05]} 35. Na5 {[%emt 0:00:25]} Rd8 {[%emt 0:03:10]} 36. Nc4 {[%emt 0:02:02]} Rcd7 {[%emt 0:03:33]} 37. Rd2 {[%emt 0:00:50]} Rc7 {[%emt 0:00:50]} 38. Nb6 {[%emt 0:00:22]} Ng7 {[%emt 0:00:38]} 39. d5 {[%emt 0:00:55]} exd5 {[%emt 0:00:21]} 40. Nxd5+ {[%emt 0:00:07]} Kd7 {[%emt 0:00:09]} 41. Nxc7+ {[%emt 0:00:29]} Kxc7 {[%emt 0:00:01]} 42. Rxd8 {[%emt 0:00:14]} Kxd8 {[%emt 0:00:01]} 43. Rd1+ {[%emt 0:00:13]} Kc7 {[%emt 0:00:10]} 44. Bf1 {[%emt 0:00:27]} b5 {[%emt 0:00:46]} 45. axb5 {[%emt 0:01:12]} axb5 {[%emt 0:00:10]} 46. Rd6 {[%emt 0:00:16]} Ne6 {[%emt 0:00:40]} 47. Bd3 {[%emt 0:01:00]} 1-0

[Event "FIDE WCCC Open-12 2024"]
[Site "Montesilvano"]
[Date "2024.11.18"]
[Round "1.20"]
[White "Ilcic, Aleksa"]
[Black "Ivancic, Ivan"]
[Result "0-1"]
[ECO "D35"]
[WhiteElo "1757"]
[BlackElo "2091"]
[PlyCount "60"]
[EventDate "2024.11.18"]
[EventType "swiss"]
[EventCountry "ITA"]
[TimeControl "5400+30"]

1. d4 {[%emt 0:00:03]} d5 {[%emt 0:00:14]} 2. c4 {[%emt 0:00:19]} e6 {[%emt 0:00:11]} 3. cxd5 {[%emt 0:00:17]} exd5 {[%emt 0:00:11]} 4. Nc3 {[%emt 0:00:11]} c6 {[%emt 0:00:28]} 5. Bf4 {[%emt 0:00:28]} Bd6 {[%emt 0:08:58]} 6. Bxd6 {[%emt 0:00:08]} Qxd6 {[%emt 0:00:10]} 7. e3 {[%emt 0:00:53]} Bf5 {[%emt 0:00:52]} 8. Bd3 {[%emt 0:00:41]} Bxd3 {[%emt 0:00:15]} 9. Qxd3 {[%emt 0:00:10]} Nf6 {[%emt 0:03:33]} 10. Nf3 {[%emt 0:00:19]} Nbd7 {[%emt 0:00:20]} 11. O-O {[%emt 0:03:09]} O-O {[%emt 0:00:14]} 12. h3 {[%emt 0:03:58]} Rfe8 {[%emt 0:06:05]} 13. Rfc1 {[%emt 0:17:03]} Ne4 {[%emt 0:07:29]} 14. Ne2 {[%emt 0:01:27]} a5 {[%emt 0:15:45]} 15. Rc2 {[%emt 0:11:49]} Nb6 {[%emt 0:11:05]} 16. Ne5 {[%emt 0:11:34]} f6 {[%emt 0:09:07]} 17. Qb3 {[%emt 0:02:55]} Qc7 {[%emt 0:03:46]} 18. Nf3 {[%emt 0:14:39]} Nc4 {[%emt 0:05:38]} 19. Rac1 {[%emt 0:02:24]} a4 {[%emt 0:05:09]} 20. Qd3 {[%emt 0:03:06]} Qb6 {[%emt 0:04:16]} 21. Rb1 {[%emt 0:08:55]} a3 {[%emt 0:10:29]} 22. b4 {[%emt 0:02:07]} Ned6 {[%emt 0:05:42]} 23. Nc3 {[%emt 0:01:27]} Nb2 {[%emt 0:00:13]} 24. Qe2 {[%emt 0:01:46]} Qxb4 {[%emt 0:01:06]} 25. Ne1 {[%emt 0:00:47]} Ndc4 {[%emt 0:00:51]} 26. Nd3 {[%emt 0:00:54]} Qd6 {[%emt 0:00:41]} 27. Nxb2 {[%emt 0:01:03]} axb2 {[%emt 0:00:15]} 28. Rd1 {[%emt 0:05:03]} b5 {[%emt 0:00:18]} 29. Nb1 {[%emt 0:03:53]} Rxa2 {[%emt 0:00:42]} 30. Nd2 {[%emt 0:00:57]} Na3 {[%emt 0:00:45]} 0-1

[Event "FIDE WCCC Open-12 2024"]
[Site "Montesilvano"]
[Date "2024.11.18"]
[Round "1.21"]
[White "Obidov, Biloliddin"]
[Black "Wang, Luis"]
[Result "1-0"]
[ECO "B07"]
[WhiteElo "2088"]
[BlackElo "1751"]
[PlyCount "57"]
[EventDate "2024.11.18"]
[EventType "swiss"]
[EventCountry "ITA"]
[TimeControl "5400+30"]

1. e4 {[%emt 0:00:01]} d6 {[%emt 0:00:08]} 2. d4 {[%emt 0:00:07]} Nf6 {[%emt 0:00:14]} 3. Nc3 {[%emt 0:00:17]} g6 {[%emt 0:00:09]} 4. Be3 {[%emt 0:00:31]} Bg7 {[%emt 0:00:09]} 5. f3 {[%emt 0:00:40]} O-O {[%emt 0:00:11]} 6. Qd2 {[%emt 0:00:10]} e5 {[%emt 0:00:30]} 7. Nge2 {[%emt 0:00:45]} Nbd7 {[%emt 0:01:36]} 8. O-O-O {[%emt 0:00:26]} a6 {[%emt 0:01:00]} 9. h4 {[%emt 0:04:45]} h5 {[%emt 0:02:00]} 10. Bh6 {[%emt 0:01:18]} b5 {[%emt 0:01:12]} 11. g4 {[%emt 0:06:56]} hxg4 {[%emt 0:05:06]} 12. h5 {[%emt 0:27:05]} gxf3 {[%emt 0:02:13]} 13. Bxg7 {[%emt 0:11:26]} Kxg7 {[%emt 0:02:01]} 14. Ng3 {[%emt 0:00:05]} Rh8 {[%emt 0:00:48]} 15. Qg5 {[%emt 0:02:58]} Kf8 {[%emt 0:20:18]} 16. dxe5 {[%emt 0:06:24]} Nxe5 {[%emt 0:02:40]} 17. Qxe5 {[%emt 0:00:53]} Bb7 {[%emt 0:04:52]} 18. Qf4 {[%emt 0:02:17]} gxh5 {[%emt 0:02:35]} 19. Qxf3 {[%emt 0:03:17]} h4 {[%emt 0:01:34]} 20. Nf5 {[%emt 0:01:36]} b4 {[%emt 0:02:56]} 21. Nd5 {[%emt 0:00:11]} Nxd5 {[%emt 0:00:55]} 22. exd5 {[%emt 0:00:07]} Bc8 {[%emt 0:00:22]} 23. Bd3 {[%emt 0:00:25]} a5 {[%emt 0:04:38]} 24. Nd4 {[%emt 0:01:36]} Qg5+ {[%emt 0:02:29]} 25. Kb1 {[%emt 0:00:10]} Ra7 {[%emt 0:07:47]} 26. Rhg1 {[%emt 0:00:29]} Qh5 {[%emt 0:01:30]} 27. Qf6 {[%emt 0:00:24]} Qxd1+ {[%emt 0:03:21]} 28. Rxd1 {[%emt 0:00:03]} Rg8 {[%emt 0:00:27]} 29. Qd8+ {[%emt 0:00:04]} 1-0

[Event "FIDE WCCC Open-12 2024"]
[Site "Montesilvano"]
[Date "2024.11.18"]
[Round "1.22"]
[White "Mikolavicius, Julius"]
[Black "Birmenko, Nikolay"]
[Result "1-0"]
[ECO "B23"]
[WhiteElo "1746"]
[BlackElo "2084"]
[PlyCount "157"]
[EventDate "2024.11.18"]
[EventType "swiss"]
[EventCountry "ITA"]
[TimeControl "5400+30"]

1. e4 {[%emt 0:00:01]} c5 {[%emt 0:00:10]} 2. Nc3 {[%emt 0:00:05]} Nc6 {[%emt 0:00:10]} 3. Bb5 {[%emt 0:00:07]} Nd4 {[%emt 0:00:12]} 4. Bc4 {[%emt 0:00:06]} e6 {[%emt 0:00:13]} 5. Nge2 {[%emt 0:00:06]} Nf6 {[%emt 0:00:22]} 6. d3 {[%emt 0:01:52]} a6 {[%emt 0:03:09]} 7. Nxd4 {[%emt 0:00:16]} cxd4 {[%emt 0:00:09]} 8. Ne2 {[%emt 0:00:18]} Bc5 {[%emt 0:05:44]} 9. O-O {[%emt 0:00:25]} d5 {[%emt 0:02:25]} 10. exd5 {[%emt 0:01:22]} Nxd5 {[%emt 0:00:09]} 11. Nf4 {[%emt 0:02:05]} Ne7 {[%emt 0:07:25]} 12. Qh5 {[%emt 0:03:55]} Qd6 {[%emt 0:07:11]} 13. Re1 {[%emt 0:10:25]} O-O {[%emt 0:02:35]} 14. Nh3 {[%emt 0:00:27]} g6 {[%emt 0:02:47]} 15. Qg5 {[%emt 0:03:39]} b5 {[%emt 0:02:34]} 16. Bf4 {[%emt 0:03:15]} Qc6 {[%emt 0:02:05]} 17. Be5 {[%emt 0:01:48]} f6 {[%emt 0:17:30]} 18. Bxf6 {[%emt 0:01:03]} h6 {[%emt 0:00:08]} 19. Qxh6 {[%emt 0:15:09]} Rxf6 {[%emt 0:01:17]} 20. Ng5 {[%emt 0:02:00]} Ra7 {[%emt 0:05:53]} 21. Bxe6+ {[%emt 0:02:52]} Bxe6 {[%emt 0:00:25]} 22. Rxe6 {[%emt 0:00:08]} Qxe6 {[%emt 0:01:00]} 23. Qh7+ {[%emt 0:00:28]} Kf8 {[%emt 0:00:07]} 24. Nxe6+ {[%emt 0:00:29]} Rxe6 {[%emt 0:00:07]} 25. Qh3 {[%emt 0:01:26]} Nf5 {[%emt 0:01:48]} 26. g4 {[%emt 0:01:59]} Ne7 {[%emt 0:02:51]} 27. Kf1 {[%emt 0:01:24]} Kg7 {[%emt 0:03:18]} 28. Re1 {[%emt 0:01:05]} Rxe1+ {[%emt 0:00:08]} 29. Kxe1 {[%emt 0:00:03]} Nd5 {[%emt 0:00:13]} 30. Qf3 {[%emt 0:01:38]} Re7+ {[%emt 0:01:48]} 31. Kf1 {[%emt 0:01:02]} Ne3+ {[%emt 0:07:16]} 32. Kg1 {[%emt 0:01:04]} Nxc2 {[%emt 0:01:06]} 33. Qc6 {[%emt 0:00:58]} Re1+ {[%emt 0:00:17]} 34. Kg2 {[%emt 0:00:14]} Rc1 {[%emt 0:00:08]} 35. Qc7+ {[%emt 0:00:46]} Kg8 {[%emt 0:00:37]} 36. Qc8+ {[%emt 0:01:01]} Bf8 {[%emt 0:03:05]} 37. Kh3 {[%emt 0:00:37]} a5 {[%emt 0:02:09]} 38. f4 {[%emt 0:00:15]} a4 {[%emt 0:04:28]} 39. f5 {[%emt 0:00:38]} gxf5 {[%emt 0:00:04]} 40. gxf5 {[%emt 0:00:29]} b4 {[%emt 0:00:58]} 41. Qe6+ {[%emt 0:00:14]} Kh8 {[%emt 0:00:42]} 42. Qe5+ {[%emt 0:00:52]} Kh7 {[%emt 0:04:57]} 43. Qc7+ {[%emt 0:00:33]} Kh8 {[%emt 0:00:24]} 44. b3 {[%emt 0:00:17]} a3 {[%emt 0:01:08]} 45. f6 {[%emt 0:00:56]} Rf1 {[%emt 0:02:01]} 46. Qxc2 {[%emt 0:02:21]} Rxf6 {[%emt 0:00:05]} 47. Qc4 {[%emt 0:00:56]} Bg7 {[%emt 0:02:12]} 48. Kg2 {[%emt 0:00:54]} Rg6+ {[%emt 0:00:26]} 49. Kh1 {[%emt 0:00:37]} Rb6 {[%emt 0:01:23]} 50. h4 {[%emt 0:00:20]} Kh7 {[%emt 0:00:35]} 51. Qc5 {[%emt 0:00:24]} Rb8 {[%emt 0:00:13]} 52. h5 {[%emt 0:00:32]} Rf8 {[%emt 0:01:24]} 53. Qxb4 {[%emt 0:00:30]} Rf1+ {[%emt 0:00:12]} 54. Kg2 {[%emt 0:00:13]} Rd1 {[%emt 0:00:05]} 55. h6 {[%emt 0:02:13]} Kxh6 {[%emt 0:00:49]} 56. Qxa3 {[%emt 0:00:17]} Rd2+ {[%emt 0:00:38]} 57. Kf1 {[%emt 0:00:07]} Be5 {[%emt 0:00:24]} 58. Qa5 {[%emt 0:00:23]} Bf4 {[%emt 0:00:09]} 59. Qb6+ {[%emt 0:00:14]} Kg5 {[%emt 0:00:05]} 60. Qxd4 {[%emt 0:00:37]} Rxa2 {[%emt 0:00:08]} 61. b4 {[%emt 0:00:25]} Rc2 {[%emt 0:00:46]} 62. b5 {[%emt 0:01:05]} Kg4 {[%emt 0:00:07]} 63. Qg7+ {[%emt 0:02:25]} Kf3 {[%emt 0:00:27]} 64. Qb7+ {[%emt 0:00:12]} Kg3 {[%emt 0:00:07]} 65. d4 {[%emt 0:00:30]} Rd2 {[%emt 0:02:05]} 66. Qc6 {[%emt 0:00:52]} Kg4 {[%emt 0:01:23]} 67. b6 {[%emt 0:01:12]} Rxd4 {[%emt 0:00:38]} 68. b7 {[%emt 0:00:28]} Rd1+ {[%emt 0:02:36]} 69. Ke2 {[%emt 0:00:11]} Rd2+ {[%emt 0:00:03]} 70. Ke1 {[%emt 0:00:15]} Rb2 {[%emt 0:00:08]} 71. Qc8+ {[%emt 0:01:40]} Kg5 {[%emt 0:00:12]} 72. Qg8+ {[%emt 0:00:39]} Kf5 {[%emt 0:00:15]} 73. Qf7+ {[%emt 0:01:17]} Ke4 {[%emt 0:00:20]} 74. Qc4+ {[%emt 0:01:56]} Kf5 {[%emt 0:00:08]} 75. Qc3 {[%emt 0:01:44]} Rb1+ {[%emt 0:03:17]} 76. Ke2 {[%emt 0:00:47]} Kg4 {[%emt 0:01:16]} 77. Qg7+ {[%emt 0:00:25]} Bg5 {[%emt 0:00:07]} 78. Qd7+ {[%emt 0:00:27]} Kf4 {[%emt 0:00:08]} 79. Qc7+ {[%emt 0:33:00] Ke5} 1-0

[Event "FIDE WCCC Open-12 2024"]
[Site "Montesilvano"]
[Date "2024.11.18"]
[Round "1.23"]
[White "Abdsattar, Alisher"]
[Black "Wang, William Kaiyuan"]
[Result "1-0"]
[ECO "C54"]
[WhiteElo "2082"]
[BlackElo "1715"]
[PlyCount "103"]
[EventDate "2024.11.18"]
[EventType "swiss"]
[EventCountry "ITA"]
[TimeControl "5400+30"]

1. e4 {[%emt 0:00:01]} e5 {[%emt 0:00:05]} 2. Nf3 {[%emt 0:00:05]} Nc6 {[%emt 0:00:07]} 3. Bc4 {[%emt 0:00:04]} Nf6 {[%emt 0:00:06]} 4. d3 {[%emt 0:00:04]} Bc5 {[%emt 0:00:08]} 5. c3 {[%emt 0:00:04]} d6 {[%emt 0:00:09]} 6. O-O {[%emt 0:00:30]} h6 {[%emt 0:00:07]} 7. Re1 {[%emt 0:00:34]} Qe7 {[%emt 0:01:04]} 8. Nbd2 {[%emt 0:01:05]} Be6 {[%emt 0:01:04]} 9. a4 {[%emt 0:01:30]} a6 {[%emt 0:00:04]} 10. b4 {[%emt 0:06:24]} Ba7 {[%emt 0:00:22]} 11. Ba3 {[%emt 0:04:44]} Qd7 {[%emt 0:05:53]} 12. b5 {[%emt 0:25:09]} Na5 {[%emt 0:05:04]} 13. Bxe6 {[%emt 0:00:24]} Qxe6 {[%emt 0:11:08]} 14. d4 {[%emt 0:01:48]} Nd7 {[%emt 0:09:00]} 15. Qe2 {[%emt 0:03:43]} O-O {[%emt 0:03:51]} 16. Bb4 {[%emt 0:00:53]} Bb6 {[%emt 0:01:00]} 17. dxe5 {[%emt 0:00:54]} Nxe5 {[%emt 0:59:48]} 18. Nxe5 {[%emt 0:00:06]} Qxe5 {[%emt 0:00:00]} 19. Bxa5 {[%emt 0:03:56]} Bxa5 {[%emt 0:01:00]} 20. Nc4 {[%emt 0:00:05]} Qxc3 {[%emt 0:00:00]} 21. Rec1 {[%emt 0:00:05]} Qb4 {[%emt 0:00:00]} 22. Rcb1 {[%emt 0:00:07]} Qc3 {[%emt 0:00:00]} 23. Ra3 {[%emt 0:00:24]} Qd4 {[%emt 0:00:00]} 24. Nxa5 {[%emt 0:00:46]} axb5 {[%emt 0:00:00]} 25. axb5 {[%emt 0:02:25]} Qc5 {[%emt 0:00:00]} 26. Raa1 {[%emt 0:00:14]} Qc3 {[%emt 0:00:00]} 27. Qe1 {[%emt 0:01:51]} Qe5 {[%emt 0:00:00]} 28. Nc4 {[%emt 0:01:47]} Qc5 {[%emt 0:00:00]} 29. Rxa8 {[%emt 0:00:13]} Rxa8 {[%emt 0:00:00]} 30. Ne3 {[%emt 0:00:05]} Re8 {[%emt 0:00:00]} 31. Qb4 {[%emt 0:00:30]} Qe5 {[%emt 0:00:00]} 32. f3 {[%emt 0:00:08]} Re6 {[%emt 0:00:00]} 33. Nf5 {[%emt 0:01:22]} Kh7 {[%emt 0:00:00]} 34. Qd4 {[%emt 0:00:23]} g6 {[%emt 0:00:00]} 35. Qxe5 {[%emt 0:01:25]} dxe5 {[%emt 0:00:00]} 36. Ne3 {[%emt 0:00:07]} c6 {[%emt 0:00:00]} 37. b6 {[%emt 0:00:04]} c5 {[%emt 0:00:00]} 38. Nd5 {[%emt 0:00:07]} Rc6 {[%emt 0:00:00]} 39. Kf2 {[%emt 0:00:03]} Kg7 {[%emt 0:00:00]} 40. Ke3 {[%emt 0:00:08]} f6 {[%emt 0:00:00]} 41. Kd3 {[%emt 0:00:05]} f5 {[%emt 0:00:00]} 42. Ra1 {[%emt 0:00:06]} c4+ {[%emt 0:00:00]} 43. Kc3 {[%emt 0:00:05]} Kf7 {[%emt 0:00:00]} 44. Ra7 {[%emt 0:00:05]} Ke6 {[%emt 0:00:00]} 45. Rxb7 {[%emt 0:00:02]} Kd6 {[%emt 0:00:00]} 46. Rc7 {[%emt 0:00:50]} Rxc7 {[%emt 0:00:00]} 47. bxc7 {[%emt 0:00:05]} Kd7 {[%emt 0:00:00]} 48. Kxc4 {[%emt 0:00:05]} f4 {[%emt 0:00:00]} 49. Kc5 {[%emt 0:00:03]} g5 {[%emt 0:00:00]} 50. Kb6 {[%emt 0:00:04]} Kc8 {[%emt 0:00:00]} 51. Kc6 {[%emt 0:00:05]} g4 {[%emt 0:00:00]} 52. Nb6# {[%emt 0:00:02]} 1-0

[Event "FIDE WCCC Open-12 2024"]
[Site "Montesilvano"]
[Date "2024.11.18"]
[Round "1.24"]
[White "Park, Onyoo"]
[Black "Petroff, Vlad"]
[Result "0-1"]
[ECO "D32"]
[WhiteElo "1710"]
[BlackElo "2079"]
[PlyCount "63"]
[EventDate "2024.11.18"]
[EventType "swiss"]
[EventCountry "ITA"]
[TimeControl "5400+30"]

1. d4 {[%emt 0:00:05]} Nf6 {[%emt 0:00:25]} 2. c4 {[%emt 0:00:16]} e6 {[%emt 0:00:17]} 3. Nf3 {[%emt 0:00:09]} d5 {[%emt 0:00:15]} 4. Nc3 {[%emt 0:00:13]} c5 {[%emt 0:01:07]} 5. cxd5 {[%emt 0:01:54]} exd5 {[%emt 0:00:22]} 6. Bg5 {[%emt 0:00:33]} Be6 {[%emt 0:01:45]} 7. Bxf6 {[%emt 0:09:03]} Qxf6 {[%emt 0:03:56]} 8. e4 {[%emt 0:01:30]} cxd4 {[%emt 0:14:55]} 9. Qxd4 {[%emt 0:00:44]} Qxd4 {[%emt 0:03:30]} 10. Nxd4 {[%emt 0:00:13]} dxe4 {[%emt 0:00:56]} 11. Nxe6 {[%emt 0:00:40]} fxe6 {[%emt 0:00:15]} 12. Nxe4 {[%emt 0:00:33]} Bb4+ {[%emt 0:00:36]} 13. Nd2 {[%emt 0:07:50]} O-O {[%emt 0:01:05]} 14. f3 {[%emt 0:07:28]} Nc6 {[%emt 0:02:38]} 15. O-O-O {[%emt 0:27:03]} Rac8 {[%emt 0:07:56]} 16. Nb3 {[%emt 0:05:49]} a5 {[%emt 0:09:27]} 17. Kb1 {[%emt 0:08:49]} a4 {[%emt 0:01:47]} 18. Nc1 {[%emt 0:01:01]} a3 {[%emt 0:10:49]} 19. bxa3 {[%emt 0:02:37]} Bxa3 {[%emt 0:00:13]} 20. Bc4 {[%emt 0:00:30]} Rfe8 {[%emt 0:02:25]} 21. Rhe1 {[%emt 0:01:46]} Kf7 {[%emt 0:04:02]} 22. Rd7+ {[%emt 0:04:19]} Kf6 {[%emt 0:03:59]} 23. Bb5 {[%emt 0:06:15]} Nb4 {[%emt 0:05:38]} 24. Rxb7 {[%emt 0:04:46]} Rc2 {[%emt 0:01:52]} 25. Ba4 {[%emt 0:06:36]} Rb2+ {[%emt 0:03:17]} 26. Ka1 {[%emt 0:00:03]} Nc2+ {[%emt 0:00:40]} 27. Bxc2 {[%emt 0:00:07]} Rxb7 {[%emt 0:00:10]} 28. Nb3 {[%emt 0:00:28]} Rc7 {[%emt 0:00:38]} 29. Kb1 {[%emt 0:01:22]} Rec8 {[%emt 0:01:56]} 30. Re2 {[%emt 0:01:32]} h5 {[%emt 0:02:29]} 31. g4 {[%emt 0:00:47]} hxg4 {[%emt 0:03:47]} 32. fxg4 {[%emt 0:01:29] Ke5} 0-1